fUSD/lending_fUSD_20240724
["ID","MTS","AMOUNT","RATE_DAILY","PERIOD"]
[333076440,1721837440416,-500.0,0.00010958,2]
[333076442,1721837440426,-525.60775662,0.00010958,2]
[333076444,1721837440438,-510.17398448,0.00010958,2]
[333076446,1721837440450,-500.0,0.00010958,2]
[333076448,1721837440460,-500.0,0.00010958,2]
[333076450,1721837440472,-500.0,0.00010958,2]
[333076452,1721837440482,-561.48794232,0.00010958,2]
[333076454,1721837440492,-500.0,0.00010958,2]
[333076456,1721837440502,-500.0,0.00010958,2]
[333076458,1721837440513,-500.0,0.00010958,2]
[333076460,1721837440523,-500.0,0.00010958,2]
[333076461,1721837440534,-500.0,0.00010958,2]
[333076463,1721837440544,-523.80999908,0.00010958,2]
[333076465,1721837440555,-172.40082952,0.00010958,2]
[333076467,1721837440566,-578.87219462,0.00010958,2]
[333076470,1721837440577,-514.37505941,0.00010958,2]
[333076472,1721837440588,-500.0,0.00010958,2]
[333076474,1721837440602,-533.17699307,0.00010958,2]
[333076476,1721837440613,-500.0,0.00010958,2]
[333076477,1721837440623,-536.26019725,0.00010958,2]
[333076479,1721837440635,-500.0,0.00010958,2]
[333076480,1721837440647,-500.0,0.00010958,2]
[333076481,1721837440658,-500.0,0.00010958,2]
[333076482,1721837440669,-500.0,0.00010958,2]
[333076483,1721837440679,-534.93394803,0.00010958,2]
[333076484,1721837440689,-1155.93,0.00010958,2]
[333076485,1721837440700,-500.0,0.00010958,2]
[333076486,1721837440710,-500.0,0.00010958,2]
[333076487,1721837440720,-500.0,0.00010958,2]
[333076488,1721837440730,-617.63920327,0.00010958,2]
[333076489,1721837440741,-500.0,0.00010958,2]
[333076490,1721837440752,-150.0,0.00010959,2]
[333076491,1721837440762,-150.0,0.00010959,2]
[333076492,1721837440772,-167.56,0.00010959,2]
[333076493,1721837440782,-339.22663719,0.00010979,2]
[333076494,1721837440793,-270.28100598,0.00010979,2]
[333076495,1721837440804,-500.0,0.00010979,2]
[333076496,1721837440815,-500.0,0.00010979,2]
[333076497,1721837440825,-500.0,0.00010979,2]
[333076498,1721837440835,-500.0,0.00010979,2]
[333076499,1721837440846,-500.0,0.00010979,2]
[333076500,1721837440857,-500.0,0.00010979,2]
[333076501,1721837440867,-176.94067105,0.00010979,2]
[333076502,1721837440879,-500.0,0.00010979,2]
[333076503,1721837440889,-500.0,0.00010979,2]
[333076504,1721837440899,-500.0,0.00010979,2]
[333076505,1721837440909,-426.98,0.00010979,2]
[333076506,1721837440920,-202.38406215,0.00010979,2]
[333076507,1721837440931,-500.0,0.00010979,2]
[333076508,1721837440941,-500.0,0.00010979,2]
[333076509,1721837440952,-500.0,0.00010979,2]
[333076510,1721837440965,-500.0,0.00010979,2]
[333076511,1721837440975,-492.89,0.00010979,2]
[333076512,1721837440986,-460.59,0.00010979,2]
[333076513,1721837440999,-500.0,0.00010979,2]
[333076514,1721837441009,-347.61458807,0.00010979,2]
[333076515,1721837441019,-567.67,0.00010979,2]
[333076516,1721837441028,-500.0,0.00010979,2]
[333076517,1721837441038,-500.0,0.00010979,2]
[333076518,1721837441048,-500.0,0.00010979,2]
[333076519,1721837441058,-209.15,0.00010979,2]
[333076520,1721837441068,-472.38472387,0.00010979,2]
[333076521,1721837441078,-500.0,0.00010979,2]
[333076522,1721837441088,-617.84,0.00010979,2]
[333076523,1721837441098,-500.0,0.00010979,2]
[333076524,1721837441109,-500.0,0.00010979,2]
[333076525,1721837441119,-315.98313643,0.00010979,2]
[333076526,1721837441130,-201.46493688,0.00010979,2]
[333076537,1721837442568,-200.0,9.9e-05,3]
[333076538,1721837442578,-500.0,0.0001,3]
[333076539,1721837442591,-212.28137853,0.00010979,2]
[333076541,1721837442602,-250.9,0.00010979,2]
[333076542,1721837442613,-500.0,0.00010979,2]
[333076543,1721837442623,-405.26794868,0.00010979,2]
[333076544,1721837442634,-500.0,0.00010979,2]
[333076545,1721837442645,-500.0,0.00010979,2]
[333076546,1721837442655,-131.17447279,0.00010979,2]
[333076547,1721837442832,-152.97948182,0.00010979,2]
[333076548,1721837442842,-500.0,0.00010979,2]
[333076549,1721837442852,-237.42051818,0.00010979,2]
[333076555,1721837443553,-0.6059613,0.00010979,2]
[333076556,1721837443565,-261.97352052,0.00010979,2]
[333076557,1721837443574,-500.0,0.00010979,2]
[333076558,1721837443588,-592.67,0.00010979,2]
[333076559,1721837443598,-286.56508774,0.00010979,2]
[333076560,1721837443608,-230.78097534,0.00010979,2]
[333076561,1721837443618,-551.0,0.00010979,2]
[333076562,1721837443630,-500.0,0.00010979,2]
[333076563,1721837443640,-500.0,0.00010979,2]
[333076564,1721837443650,-208.64802261,0.00010979,2]
[333076565,1721837443660,-408.35667823,0.00010979,2]
[333076566,1721837443672,-500.0,0.00010979,2]
[333076567,1721837443682,-360.26983267,0.00010979,2]
[333076568,1721837443692,-500.0,0.00010979,2]
[333076569,1721837443702,-500.0,0.00010979,2]
[333076570,1721837443714,-500.0,0.00010979,2]
[333076571,1721837443725,-500.0,0.00010979,2]
[333076572,1721837443736,-500.0,0.00010979,2]
[333076573,1721837443746,-396.94707262,0.00010979,2]
[333076574,1721837443757,-350.5449374,0.00010979,2]
[333076575,1721837443768,-500.0,0.00010979,2]
[333076576,1721837443779,-506.43,0.00010979,2]
[333076577,1721837443789,-342.02,0.00010979,2]
[333076578,1721837443800,-221.46831702,0.00010979,2]
[333076579,1721837443809,-412.43669565,0.00010979,2]
[333076580,1721837443819,-500.0,0.00010979,2]
[333076581,1721837443829,-379.47,0.00010979,2]
[333076582,1721837443840,-518.64,0.00010979,2]
[333076583,1721837443850,-409.3889264,0.00010979,2]
[333076584,1721837443859,-611.4154281,0.00010979,2]
[333076585,1721837443869,-500.0,0.00010979,2]
[333076586,1721837443879,-500.0,0.00010979,2]
[333076587,1721837443889,-500.0,0.00010979,2]
[333076588,1721837443899,-500.0,0.00010979,2]
[333076589,1721837443909,-500.0,0.00010979,2]
[333076590,1721837443920,-500.0,0.00010979,2]
[333076591,1721837443930,-500.0,0.00010979,2]
[333076592,1721837443939,-500.0,0.00010979,2]
[333076593,1721837443949,-500.0,0.00010979,2]
[333076594,1721837443959,-171.47338469,0.00010979,2]
[333076595,1721837443973,-53854.82818234,0.0001098,4]
[333076596,1721837443985,-561.64706905,0.0001098,4]
[333076597,1721837444025,-11552.99633295,0.0001098,4]
[333076598,1721837444037,-6690.018384,0.0001098,4]
[333076610,1721837445813,-700.0,0.000101,3]
[333076611,1721837445823,-250.0,0.00010342,2]
[333076612,1721837445832,-3431.4965804,0.0001098,4]
[333076613,1721837445851,-2270.28725041,0.0001098,4]
[333076614,1721837445866,-318.73523036,0.0001098,4]
[333076615,1721837445878,-23765.70794367,0.0001098,4]
[333076623,1721837725073,530.47,8.219e-05,2]
[333076624,1721837788917,11962.0443548,8.219e-05,2]
[333076625,1721837806485,757.59814731,8.219e-05,2]
[333076626,1721837828258,578.20564769,8.219e-05,2]
[333076627,1721838306331,503.94,8.219e-05,2]
[333076628,1721838319957,6791.29226576,9e-05,2]
[333076629,1721838357941,7377.79298892,6.94e-05,2]
[333076669,1721838631616,-300.0,9.543e-05,2]
[333076670,1721838631626,-151.92492773,9.543e-05,2]
[333076671,1721838631637,-148.07507227,9.543e-05,2]
[333076672,1721838631646,-314.45709105,9.544e-05,2]
[333076673,1721838631657,-289.46000608,9.544e-05,2]
[333076674,1721838631674,-23296.08290287,9.544e-05,2]
[333076675,1721838631683,-760.62,9.616e-05,2]
[333076676,1721838631692,-500.0,9.675e-05,2]
[333076677,1721838631702,-1000.0,9.741e-05,2]
[333076678,1721838631710,-168.41,9.862e-05,2]
[333076679,1721838631719,-150.0,9.863e-05,2]
[333076680,1721838631729,-200.0,9.9e-05,3]
[333076681,1721838631738,-2015.0,0.0001,2]
[333076682,1721838631747,-500.0,0.0001,3]
[333076683,1721838631757,-4448.44888679,0.0001,2]
[333076684,1721838631766,-169.8074028,0.00010038,2]
[333076685,1721838631775,-800.0,0.000101,3]
[333076686,1721838631785,-1100.0,0.000102,3]
[333076687,1721838631794,-168.76909043,0.0001021,2]
[333076688,1721838631803,-1400.0,0.000103,3]
[333076689,1721838631813,-911.33,0.000104,2]
[333076690,1721838631821,-200.0,0.000104,3]
[333076691,1721838631830,-503.94,0.00010462,2]
[333076692,1721838631839,-299.99,0.00010462,2]
[333076693,1721838631848,-420.0,0.00010497,2]
[333076694,1721838631858,-420.0,0.00010497,2]
[333076695,1721838631867,-200.0,0.000105,3]
[333076696,1721838631876,-499.99,0.000106,2]
[333076697,1721838631885,-200.0,0.000106,3]
[333076698,1721838631894,-150.0,0.000106,2]
[333076699,1721838631903,-23918.0,0.00010654,2]
[333076700,1721838631913,-709.2503867,0.0001067,2]
[333076702,1721838631922,-709.2503867,0.0001067,2]
[333076704,1721838631931,-151.277,0.00010681,2]
[333076706,1721838631940,-3520.9278,0.00010699,2]
[333076708,1721838631953,-1283.5915,0.00010699,2]
[333076709,1721838631962,-61562.7547,0.00010699,2]
[333076711,1721838631972,-10023.6389,0.00010699,2]
[333076713,1721838631981,-1000.0,0.00010699,2]
[333076715,1721838631991,-200.0,0.000107,3]
[333076717,1721838632002,-150.0,0.00010727,2]
[333076719,1721838632011,-150.0,0.00010729,2]
[333076721,1721838632020,-150.0,0.00010751,2]
[333076722,1721838632030,-150.0,0.0001076,2]
[333076724,1721838632039,-220.84,0.00010767,2]
[333076726,1721838632048,-150.0,0.0001077,2]
[333076728,1721838632057,-1000.0,0.00010799,2]
[333076730,1721838632067,-39063.7926,0.00010799,2]
[333076731,1721838632076,-500.0,0.00010799,2]
[333076732,1721838632085,-100000.0,0.00010799,2]
[333076733,1721838632095,-6331.7544,0.00010799,2]
[333076734,1721838632104,-35062.5832,0.00010799,2]
[333076735,1721838632113,-3028.0524,0.00010799,2]
[333076736,1721838632122,-868.0,0.000108,3]
[333076737,1721838632130,-150.0,0.00010806,2]
[333076738,1721838632140,-150.0,0.00010819,2]
[333076739,1721838632149,-150.0,0.00010822,2]
[333076740,1721838632158,-150.0,0.00010826,2]
[333076741,1721838632167,-150.0,0.00010833,2]
[333076742,1721838632176,-304.80832522,0.00010834,2]
[333076743,1721838632185,-150.0,0.00010836,2]
[333076744,1721838632194,-150.0,0.00010848,2]
[333076745,1721838632203,-150.0,0.00010864,2]
[333076746,1721838632212,-587.41617166,0.0001087,2]
[333076747,1721838632221,-3000.0,0.0001087,2]
[333076748,1721838632231,-587.41617165,0.00010873,2]
[333076749,1721838632239,-587.41617165,0.00010875,2]
[333076750,1721838632248,-587.41617165,0.00010878,2]
[333076751,1721838632259,-4705.7756,0.0001088,2]
[333076752,1721838632268,-175.09371247,0.0001088,2]
[333076753,1721838632277,-184.1543007,0.0001088,2]
[333076754,1721838632287,-183216.42743019,0.0001088,2]
[333076755,1721838632296,-587.41617165,0.0001088,2]
[333076756,1721838632305,-209.3391089,0.0001088,2]
[333076757,1721838632315,-1611.42412487,0.0001088,2]
[333076758,1721838632324,-183.64362293,0.0001088,2]
[333076759,1721838632333,-180.19668508,0.0001088,2]
[333076760,1721838632343,-2324.21109593,0.0001088,2]
[333076761,1721838632352,-150.0,0.00010882,2]
[333076762,1721838632362,-175.09371246,0.00010885,2]
[333076763,1721838632371,-209.33910888,0.00010885,2]
[333076764,1721838632380,-175.09371246,0.0001089,2]
[333076765,1721838632389,-305.6438198,0.0001089,2]
[333076766,1721838632398,-209.33910888,0.0001089,2]
[333076767,1721838632407,-175.09371246,0.00010895,2]
[333076768,1721838632416,-209.33910888,0.00010895,2]
[333076769,1721838632425,-150.0,0.00010896,2]
[333076770,1721838632434,-150.0,0.00010896,2]
[333076771,1721838632444,-1776.21973442,0.00010897,2]
[333076772,1721838632453,-150.0,0.00010898,2]
[333076773,1721838632463,-4364.142956,0.000109,2]
[333076774,1721838632472,-1000.0,0.000109,2]
[333076775,1721838632481,-5000.0,0.000109,2]
[333076776,1721838632491,-175.09371246,0.000109,2]
[333076777,1721838632500,-184.1543007,0.000109,2]
[333076778,1721838632511,-305.6438198,0.000109,2]
[333076779,1721838632520,-209.33910888,0.000109,2]
[333076780,1721838632529,-150.0,0.00010903,2]
[333076781,1721838632538,-500.0,0.00010911,2]
[333076782,1721838632547,-500.0,0.00010912,2]
[333076783,1721838632556,-150.0,0.00010916,2]
[333076784,1721838632566,-150.0,0.00010928,2]
[333076785,1721838632575,-150.0,0.00010936,2]
[333076786,1721838632584,-150.0,0.00010938,2]
[333076787,1721838632593,-150.0,0.00010941,2]
[333076788,1721838632603,-192.03273631,0.00010958,2]
[333076789,1721838632612,-521.40761903,0.00010958,2]
[333076790,1721838632622,-500.0,0.00010958,2]
[333076791,1721838632631,-500.0,0.00010958,2]
[333076792,1721838632641,-500.0,0.00010958,2]
[333076793,1721838632650,-555.39839241,0.00010958,2]
[333076794,1721838632659,-504.97937195,0.00010958,2]
[333076795,1721838632668,-500.0,0.00010958,2]
[333076796,1721838632677,-500.0,0.00010958,2]
[333076797,1721838632687,-500.0,0.00010958,2]
[333076798,1721838632696,-500.0,0.00010958,2]
[333076799,1721838632705,-500.0,0.00010958,2]
[333076800,1721838632714,-500.0,0.00010958,2]
[333076801,1721838632723,-500.0,0.00010958,2]
[333076802,1721838632732,-576.68,0.00010958,2]
[333076803,1721838632741,-501.0,0.00010958,2]
[333076804,1721838632750,-500.0,0.00010958,2]
[333076805,1721838632760,-522.64536288,0.00010958,2]
[333076806,1721838632769,-567.43547508,0.00010958,2]
[333076807,1721838632778,-500.0,0.00010958,2]
[333076808,1721838632787,-520.2,0.00010958,2]
[333076809,1721838632796,-525.50769677,0.00010958,2]
[333076810,1721838632805,-500.0,0.00010958,2]
[333076811,1721838632817,-500.0,0.00010958,2]
[333076812,1721838632826,-521.77913576,0.00010958,2]
[333076813,1721838632835,-519.82935358,0.00010958,2]
[333076814,1721838632843,-500.0,0.00010958,2]
[333076815,1721838632852,-500.0,0.00010958,2]
[333076816,1721838632862,-500.0,0.00010958,2]
[333076817,1721838632871,-237.23089249,0.00010958,2]
[333076818,1721838632880,-629.82827044,0.00010958,2]
[333076819,1721838632890,-500.0,0.00010958,2]
[333076820,1721838632899,-500.0,0.00010958,2]
[333076821,1721838632910,-513.73983673,0.00010958,2]
[333076822,1721838632920,-500.0,0.00010958,2]
[333076823,1721838632930,-500.0,0.00010958,2]
[333076824,1721838632940,-500.0,0.00010958,2]
[333076825,1721838632953,-500.0,0.00010958,2]
[333076826,1721838632962,-500.0,0.00010958,2]
[333076827,1721838632972,-500.0,0.00010958,2]
[333076828,1721838632981,-500.0,0.00010958,2]
[333076829,1721838632991,-500.0,0.00010958,2]
[333076830,1721838633002,-500.0,0.00010958,2]
[333076831,1721838633011,-500.0,0.00010958,2]
[333076832,1721838633021,-500.0,0.00010958,2]
[333076833,1721838633037,-507.27797881,0.00010958,2]
[333076834,1721838633048,-517.1770827,0.00010958,2]
[333076835,1721838633058,-500.0,0.00010958,2]
[333076836,1721838633068,-500.0,0.00010958,2]
[333076837,1721838633078,-500.0,0.00010958,2]
[333076838,1721838633088,-212.30501151,0.00010958,2]
[333076839,1721838633097,-1000.0,0.00010958,2]
[333076840,1721838633107,-250.0,0.00010959,2]
[333076841,1721838633116,-284.37,0.00010959,2]
[333076842,1721838633126,-236.97,0.00010959,2]
[333076843,1721838633136,-197.48,0.00010959,2]
[333076844,1721838633146,-164.57,0.00010959,2]
[333076845,1721838633156,-822.85,0.00010959,2]
[333076846,1721838633166,-150.0,0.00010961,2]
[333076847,1721838633176,-1000.0,0.0001097,2]
[333076848,1721838633186,-1000.0,0.0001097,2]
[333076849,1721838633196,-1000.0,0.0001097,2]
[333076850,1721838633206,-1000.0,0.0001097,2]
[333076851,1721838633216,-1000.0,0.0001097,2]
[333076852,1721838633225,-1000.0,0.0001097,2]
[333076853,1721838633235,-1000.0,0.0001097,2]
[333076854,1721838633245,-1000.0,0.0001097,2]
[333076855,1721838633255,-1000.0,0.0001097,2]
[333076856,1721838633264,-1864.44564043,0.0001097,2]
[333076857,1721838633274,-500.0,0.0001097,2]
[333076858,1721838633283,-500.0,0.0001097,2]
[333076859,1721838633293,-500.0,0.0001097,2]
[333076860,1721838633303,-500.0,0.0001097,2]
[333076861,1721838633313,-500.0,0.0001097,2]
[333076862,1721838633323,-500.0,0.0001097,2]
[333076863,1721838633333,-500.0,0.0001097,2]
[333076864,1721838633343,-500.0,0.0001097,2]
[333076865,1721838633353,-694.37569544,0.0001097,2]
[333076866,1721838633362,-150.0,0.00010976,2]
[333076867,1721838633372,-178.473543,0.00010977,2]
[333076868,1721838633382,-178.473543,0.00010977,2]
[333076869,1721838633392,-10308.26134773,0.00010977,2]
[333076870,1721838633401,-435.6,0.00010978,2]
[333076871,1721838633410,-170.33915887,0.00010979,2]
[333076872,1721838633419,-500.0,0.00010979,2]
[333076873,1721838633428,-500.0,0.00010979,2]
[333076874,1721838633438,-500.0,0.00010979,2]
[333076875,1721838633447,-500.0,0.00010979,2]
[333076876,1721838633456,-500.0,0.00010979,2]
[333076877,1721838633466,-500.0,0.00010979,2]
[333076878,1721838633476,-500.0,0.00010979,2]
[333076879,1721838633485,-500.0,0.00010979,2]
[333076880,1721838633495,-500.0,0.00010979,2]
[333076881,1721838633505,-500.0,0.00010979,2]
[333076882,1721838633514,-500.0,0.00010979,2]
[333076883,1721838633523,-500.0,0.00010979,2]
[333076884,1721838633533,-290.61,0.00010979,2]
[333076885,1721838633542,-500.0,0.00010979,2]
[333076886,1721838633551,-500.0,0.00010979,2]
[333076887,1721838633560,-613.69,0.00010979,2]
[333076888,1721838633570,-337.16977,0.00010979,2]
[333076889,1721838633579,-151.0,0.00010979,2]
[333076890,1721838633589,-571.83,0.00010979,2]
[333076891,1721838633599,-500.0,0.00010979,2]
[333076892,1721838633608,-500.0,0.00010979,2]
[333076893,1721838633617,-500.0,0.00010979,2]
[333076894,1721838633626,-500.0,0.00010979,2]
[333076895,1721838633635,-500.0,0.00010979,2]
[333076896,1721838633644,-500.0,0.00010979,2]
[333076897,1721838633654,-500.0,0.00010979,2]
[333076898,1721838633664,-500.0,0.00010979,2]
[333076899,1721838633674,-500.0,0.00010979,2]
[333076900,1721838633683,-500.0,0.00010979,2]
[333076901,1721838633692,-500.0,0.00010979,2]
[333076902,1721838633701,-500.0,0.00010979,2]
[333076903,1721838633710,-335.83,0.00010979,2]
[333076904,1721838633719,-500.0,0.00010979,2]
[333076905,1721838633728,-500.0,0.00010979,2]
[333076906,1721838633737,-218.87,0.00010979,2]
[333076907,1721838633746,-170.31909994,0.00010979,2]
[333076908,1721838633756,-500.0,0.00010979,2]
[333076909,1721838633765,-500.0,0.00010979,2]
[333076910,1721838633775,-500.0,0.00010979,2]
[333076911,1721838633784,-476.00056047,0.00010979,2]
[333076912,1721838633793,-520.19,0.00010979,2]
[333076913,1721838633802,-393.4475474,0.00010979,2]
[333076914,1721838633811,-516.1824,0.00010979,2]
[333076915,1721838633820,-1017030.43390644,0.0001098,4]
[333076916,1721838633838,-664.46,0.0001098,4]
[333076917,1721838633853,-2005.57355483,0.0001098,4]
[333076918,1721838633864,-322.91174239,0.0001098,4]
[333076919,1721838633880,-283.21327208,0.0001098,4]
[333076920,1721838633891,-746.44510063,0.0001098,4]
[333076921,1721838633902,-280.56667432,0.0001098,4]
[333076922,1721838637864,-14304.10779326,0.0001098,4]
[333076923,1721838637875,-645.84822333,0.0001098,4]
[333076924,1721838637891,-8089.275118,0.0001098,4]
[333076926,1721838637902,-17154.09018915,0.0001098,4]
[333076928,1721838637915,-6500.0,0.0001098,4]
[333076930,1721838639645,-2632.50050465,0.0001098,4]
[333076931,1721838639656,-1373.88509733,0.0001098,4]
[333076932,1721838639667,-2506.13488341,0.0001098,4]
[333076933,1721838639703,-531.2423039,0.0001098,4]
[333076934,1721838639715,-13872.09019348,0.0001098,4]
[333076935,1721838639726,-1213.13686397,0.0001098,4]
[333076936,1721838639738,-354.33584849,0.0001098,4]
[333076937,1721838639771,-919.6671834,0.0001098,4]
[333076938,1721838639783,-4207.9876383,0.0001098,4]
[333076939,1721838639838,-346.32,0.0001098,4]
[333076940,1721838639850,-17622.98480981,0.0001098,4]
[333076941,1721838639901,-1950.27975375,0.0001098,4]
[333076942,1721838639914,-2123.07399969,0.0001098,4]
[333076943,1721838639925,-66287.1696939,0.0001098,4]
[333076944,1721838639937,-11844.43003912,0.0001098,4]
[333076945,1721838639971,-323.19502115,0.0001098,4]
[333076946,1721838639982,-569.80410334,0.0001098,4]
[333076947,1721838639995,-6618.563923,0.0001098,4]
[333076973,1721838642796,-301.25385499,0.0001098,4]
[333076976,1721838642819,-2796.88342727,0.0001098,4]
[333076984,1721838642924,-1243.700005,0.0001098,4]
[333076985,1721838642937,-3014.62744647,0.0001098,4]
[333076986,1721838642983,-519467.0269123,0.0001098,4]
[333076987,1721838643044,-1745.585,0.0001098,4]
[333076988,1721838643057,-1016.18242901,0.0001098,4]
[333076991,1721838645675,-180.33,0.00010959,2]
[333076992,1721838645685,-769.67,0.0001098,4]
[333077000,1721838645845,-450.0,0.0001098,4]
[333077004,1721838645978,-571.94053383,0.0001098,4]
[333077005,1721838645990,-723.31874969,0.0001098,4]
[333077006,1721838646002,-5299.97913826,0.0001098,4]
[333077007,1721838646015,-7494.63057355,0.0001098,4]
[333077008,1721838646027,-1250.0945842,0.0001098,4]
[333077009,1721838646039,-2128.84910156,0.0001098,4]
[333077010,1721838646051,-1828.29328053,0.0001098,4]
[333077021,1721838877094,453.54,8.219e-05,2]
[333077022,1721838913862,1000.0,9.06e-05,2]
[333077023,1721838928319,798.16396892,8.219e-05,2]
[333077024,1721838939560,155.0,8.219e-05,2]
[333077025,1721838977303,1000.0,0.000136,120]
[333077028,1721839428842,430.86,8.219e-05,2]
[333077029,1721839467419,8565.01266291,8.219e-05,2]
[333077030,1721839479598,155.0,8.219e-05,2]
[333077031,1721839487123,155.0,8.219e-05,2]
[333077074,1721839833158,-151.78567145,9.797e-05,2]
[333077075,1721839833168,-1000.0,9.918e-05,2]
[333077076,1721839833177,-290.05974808,9.925e-05,2]
[333077077,1721839833186,-1640.19075172,9.962e-05,2]
[333077078,1721839833403,-1995.18,9.962e-05,2]
[333077079,1721839833506,-348.9147864,9.962e-05,2]
[333077080,1721839833536,-609.86344662,9.962e-05,2]
[333077081,1721839833564,-1750.0,9.808e-05,2]
[333077082,1721839833580,-6719.12,9.808e-05,2]
[333077083,1721839833590,-25003.88830569,9.962e-05,2]
[333077084,1721839833599,-300.0,0.00010083,2]
[333077085,1721839833610,-153.03856833,0.00010084,2]
[333077086,1721839833620,-150.98429648,0.00010141,2]
[333077087,1721839833629,-419.84,0.000102,2]
[333077088,1721839833639,-168.76909044,0.00010247,2]
[333077089,1721839833648,-168.76909044,0.00010338,2]
[333077090,1721839833658,-430.86,0.00010471,2]
[333077091,1721839833668,-257.09727178,0.00010589,2]
[333077092,1721839833678,-1238.01625717,0.00010598,2]
[333077093,1721839833688,-150.0,0.00010598,2]
[333077094,1721839833700,-31786.85150503,0.00010599,2]
[333077095,1721839833711,-5993.974656,0.00010599,2]
[333077107,1721839837880,-1083.43000002,0.00010599,2]
[333077110,1721839837980,-500.54133244,0.00010599,2]
[333077111,1721839837992,-282.48007,0.00010599,2]
[333077112,1721839838003,-2123.93814826,0.00010599,2]
[333077113,1721839838052,-1266.92510595,0.00010599,2]
[333077114,1721839838149,-374.16624248,0.00010599,2]
[333077115,1721839838161,-700.67526372,0.00010599,2]
[333077116,1721839838172,-2239.17967336,0.00010599,2]
[333077117,1721839838183,-1273.04144729,0.00010599,2]
[333077204,1721839840104,-2739.7615372,0.00010599,2]
[333077205,1721839840115,-1211.26445274,0.00010599,2]
[333077206,1721839840436,-65142.86696551,0.00010599,2]
[333077207,1721839840446,-2500.0,0.00010599,2]
[333077208,1721839840456,-420.2,0.000106,2]
[333077209,1721839840466,-9722.4317,0.00010699,2]
[333077210,1721839840476,-245000.0,0.00010699,2]
[333077211,1721839840486,-417.84,0.000108,2]
[333077212,1721839840497,-832.89,0.000108,2]
[333077213,1721839840508,-420.2,0.000108,2]
[333077214,1721839840518,-420.2,0.000108,2]
[333077215,1721839840528,-150.0,0.00010837,2]
[333077216,1721839840538,-5263.67276503,0.0001088,2]
[333077217,1721839840549,-94736.32723497,0.0001088,2]
[333077218,1721839840558,-482.77171221,0.0001088,2]
[333077219,1721839840568,-15812.6193,0.0001088,2]
[333077221,1721839840577,-500.0,0.0001089,2]
[333077222,1721839840586,-500.0,0.00010891,2]
[333077223,1721839840596,-1000.0,0.000109,2]
[333077224,1721839840606,-1704.0,0.000109,2]
[333077225,1721839840616,-305.6438198,0.000109,2]
[333077226,1721839840625,-150.0,0.00010943,2]
[333077227,1721839840634,-96923.91744444,0.0001095,2]
[333077228,1721839840643,-500.0,0.00010958,2]
[333077229,1721839840652,-500.0,0.00010958,2]
[333077230,1721839840662,-510.00621839,0.00010958,2]
[333077231,1721839840671,-500.0,0.00010958,2]
[333077232,1721839840680,-500.0,0.00010958,2]
[333077233,1721839840690,-509.466087,0.00010958,2]
[333077234,1721839840699,-500.0,0.00010958,2]
[333077235,1721839840708,-500.0,0.00010958,2]
[333077236,1721839840717,-507.40932519,0.00010958,2]
[333077237,1721839840726,-152.126271,0.00010958,2]
[333077238,1721839840735,-500.0,0.00010958,2]
[333077239,1721839840744,-352.05694886,0.00010958,2]
[333077240,1721839840754,-500.0,0.00010958,2]
[333077241,1721839840763,-344.94008346,0.00010958,2]
[333077242,1721839840772,-500.0,0.00010958,2]
[333077243,1721839840781,-511.92076718,0.00010958,2]
[333077244,1721839840790,-517.44468802,0.00010958,2]
[333077245,1721839840799,-506.03614463,0.00010958,2]
[333077246,1721839840808,-524.9230661,0.00010958,2]
[333077247,1721839840817,-500.0,0.00010958,2]
[333077248,1721839840827,-500.0,0.00010958,2]